Workbook

Sheet privat
A1: Berechnung *)
A2: privat Versicherter AN | C2: BMG | D2: BMG | F2: Zuschuss | I2: Entgeltabrechnung im Juli 2022
F3: normalerweise
A4: BBG | B4: 4837.5
A5: 0.146 | B5: =SUM(A5:A7) -> 0.159 | D5: =B4 -> 4837.5 | F5: =(B4*A5)/2 -> 353.1375
A6: 0.013 | B6: =(A5+A6)/2 -> 0.0795 | F6: =(B4*A6)/2 -> 31.44375
A7: Gesamt | F7: =SUM(F5:F6) -> 384.58125
A9: Entgeltkürzung
A10: lfd. Entgelt - Gehalt | B10: 4000
A11: abzüglich Kürzung | B11: -1290.32
A12: Summe inkl. Kürzung / Gesamtentgelt | B12: =SUM(B10:B11) -> 2709.68
A14: Zuschuss-Berechnung | B14: =B12 -> 2709.68 | C14: =A5/2 -> 0.073 | F14: =B14*C14 -> 197.80664
A15: im Entschädigungsfall | C15: =A6/2 -> 0.0065 | F15: =B14*C15 -> 17.61292
F17: =SUM(F14:F16) -> 215.41956
A19: *) durchschnittlicher Zusatzbeitrag | I19: erfasste Werte

Sheet Sorgeberechtigter
A1: Berechnung *)
A2: Freiwillig versicherter AN - Sorgeberechtigte | C2: BMG | D2: BMG | F2: Zuschuss | G2: Beitrag | H2: Entgeltabrechnung im Juli 2022
G3: normal
A4: BBG | B4: 4837.5
A5: 0.146 | B5: =SUM(A5:A7) -> 0.157 | D5: =B4 -> 4837.5 | F5: =(B4*A5)/2 -> 353.1375 | G5: =B4*A5 -> 706.275
A6: 0.011 | B6: =(A5+A6)/2 -> 0.0785 | F6: =(B4*A6)/2 -> 26.60625 | G6: =B4*A6 -> 53.2125
A7: Gesamt | F7: =SUM(F5:F6) -> 379.74375 | G7: =SUM(G5:G6) -> 759.4875
A9: Verhältnis-Rechnung
A10: Feststellung der dem Grunde nach beitragspflichtigen Einnahme
A11: lfd. Entgelt - Gehalt | B11: 6000
A12: abzüglich Kürzung | B12: -2000
A13: Summe inkl. Kürzung / restl. laufendes Entgelt | B13: =SUM(B11:B12) -> 4000
A14: beitragspflichtiger Anteil für lfd. Brutto:
A15: Entgelt mit Kürzung | B15: =B13 -> 4000
A16: geteilt durch Gesamtentgelt | B16: =B11 -> 6000
A17: x BBG | B17: =B4 -> 4837.5 | E17: =B15/B16*B17 -> 3225
A19: beitragspflichtiger Anteil für Ausfallbrutto
A20: Ausfallbrutto | B20: =-(B12) -> 2000
A21: geteilt durch Gesamtentgelt | B21: =B11 -> 6000
A22: x BBG (x 80% wegen Sorgeberechtigte) | B22: =B4 -> 4837.5 | C22: 0.8
A23: ergibt | D23: =B20/B21*B22 -> 1612.5 | E23: =D23*C22 -> 1290 | H23: erfasste Werte
A25: Beitragsberechnung mit Beitragsherabsetzung
B26: =E17 -> 3225 | C26: =A5 -> 0.146 | G26: =B26*C26 -> 470.85
C27: =A6 -> 0.011 | G27: =B26*C27 -> 35.475
B29: =E23 -> 1290 | C29: =C26 -> 0.146 | G29: =B29*C29 -> 188.34
C30: =C27 -> 0.011 | G30: =B29*C30 -> 14.19
G31: =SUM(G26:G30) -> 708.855
A33: Zuschuss-Berechnung | B33: =B13 -> 4000 | C33: =A5/2 -> 0.073 | F33: =B33*C33 -> 292
C34: =A6/2 -> 0.0055 | F34: =B33*C34 -> 22
F36: =SUM(F33:F35) -> 314
A38: *) kassenindividueller Zusatzbeitrag (IKK gesund)

Sheet Quarantäne
A1: Berechnung *)
A2: Freiwillig versicherter AN - Quarantäne | C2: BMG | D2: BMG | F2: Zuschuss | G2: Beitrag | I2: Entgeltabrechnung im Juli 2022
F3: normal | G3: normal
A4: BBG | B4: 4837.5
A5: 0.146 | B5: =SUM(A5:A7) -> 0.157 | D5: =B4 -> 4837.5 | F5: =(B4*A5)/2 -> 353.1375 | G5: =B4*A5 -> 706.275
A6: 0.011 | B6: =(A5+A6)/2 -> 0.0785 | F6: =(B4*A6)/2 -> 26.60625 | G6: =B4*A6 -> 53.2125
A7: Gesamt | F7: =SUM(F5:F6) -> 379.74375 | G7: =SUM(G5:G6) -> 759.4875
A9: Feststellung der dem Grunde nach beitragspflichtigen Einnahme
A10: lfd. Entgelt - Gehalt | B10: 6000
A11: abzüglich Kürzung | B11: -2000
A12: restliches laufendes Entgelt (nach Kürzung) | B12: =SUM(B10:B11) -> 4000
A14: keine Beitragsherabsetzung möglich!
A17: Zuschuss-Berechnung | B17: =B12 -> 4000 | C17: =A5/2 -> 0.073 | F17: =B17*C17 -> 292
C18: =A6/2 -> 0.0055 | F18: =B17*C18 -> 22
F20: =SUM(F17:F19) -> 314
A22: *) kassenindividueller Zusatzbeitrag (IKK gesund)
I23: erfasste Werte:
